[Event "Titled Tuesday Blitz July 11 Late 2023"]
[White "Fiorito, Francisco"]
[Black "rikchessmx"]
[WhiteFideId "180165"]
[WhiteElo "2554"]
[BlackElo "2233"]
[Result "1-0"]
[Round "1"]
[TimeControl "180+2"]
[Date "2023.07.11"]
[WhiteClock "0:00:19"]
[BlackClock "0:00:00"]
[Board "158"]

1. d4 {[%clk 0:03:00]}  Nf6 {[%clk 0:02:59]} 2. Nc3 {[%clk 0:03:01]}  e6 {[%clk 0:02:58]} 3. Bf4 {[%clk 0:03:00]}  d6 {[%clk 0:02:56]} 4. Nf3 {[%clk 0:02:55]}  Nh5 {[%clk 0:02:49]} 5. Bg5 {[%clk 0:02:50]}  Be7 {[%clk 0:02:47]} 6. Bxe7 {[%clk 0:02:49]}  Qxe7 {[%clk 0:02:48]} 7. e3 {[%clk 0:02:47]}  f5 {[%clk 0:02:48]} 8. Bd3 {[%clk 0:02:44]}  Nf6 {[%clk 0:02:48]} 9. Qe2 {[%clk 0:02:43]}  d5 {[%clk 0:02:47]} 10. Ne5 {[%clk 0:02:39]}  Qb4 {[%clk 0:02:44]} 11. O-O-O {[%clk 0:02:34]}  c5 {[%clk 0:02:39]} 12. dxc5 {[%clk 0:02:33]}  Qxc5 {[%clk 0:02:37]} 13. g4 {[%clk 0:02:34]}  Nc6 {[%clk 0:02:27]} 14. Bb5 {[%clk 0:02:20]}  a6 {[%clk 0:02:25]} 15. Bxc6+ {[%clk 0:02:18]}  bxc6 {[%clk 0:02:25]} 16. gxf5 {[%clk 0:02:17]}  exf5 {[%clk 0:02:25]} 17. f4 {[%clk 0:02:15]}  Rb8 {[%clk 0:02:23]} 18. Rd4 {[%clk 0:02:11]}  O-O {[%clk 0:02:06]} 19. Rg1 {[%clk 0:02:10]}  Be6 {[%clk 0:02:01]} 20. Qxa6 {[%clk 0:02:07]}  Rxb2 {[%clk 0:01:52]} 21. Qxc6 {[%clk 0:01:31]}  Qxc6 {[%clk 0:01:20]} 22. Nxc6 {[%clk 0:01:32]}  Rb6 {[%clk 0:01:15]} 23. Ne7+ {[%clk 0:01:26]}  Kf7 {[%clk 0:01:13]} 24. Nexd5 {[%clk 0:01:27]}  Nxd5 {[%clk 0:01:11]} 25. Nxd5 {[%clk 0:01:28]}  Ra6 {[%clk 0:01:09]} 26. Nb4 {[%clk 0:01:26]}  Ra4 {[%clk 0:01:05]} 27. Kb2 {[%clk 0:01:22]}  Rfa8 {[%clk 0:01:04]} 28. c3 {[%clk 0:01:21]}  g6 {[%clk 0:01:03]} 29. Rd6 {[%clk 0:01:20]}  Ke7 {[%clk 0:00:52]} 30. Rgd1 {[%clk 0:01:17]}  Bxa2 {[%clk 0:00:48]} 31. Rd7+ {[%clk 0:01:17]}  Ke8 {[%clk 0:00:47]} 32. Rxh7 {[%clk 0:01:16]}  Bf7 {[%clk 0:00:44]} 33. Rh8+ {[%clk 0:01:12]}  Ke7 {[%clk 0:00:43]} 34. Rxa8 {[%clk 0:01:08]}  Rxa8 {[%clk 0:00:42]} 35. Ra1 {[%clk 0:01:09]}  Rh8 {[%clk 0:00:40]} 36. Rh1 {[%clk 0:01:00]}  Rh3 {[%clk 0:00:36]} 37. Nc2 {[%clk 0:00:52]}  Bd5 {[%clk 0:00:34]} 38. Rd1 {[%clk 0:00:52]}  Be4 {[%clk 0:00:34]} 39. Nd4 {[%clk 0:00:24]}  Rxh2+ {[%clk 0:00:31]} 40. Kb3 {[%clk 0:00:22]}  Rh3 {[%clk 0:00:26]} 41. Re1 {[%clk 0:00:20]}  Kd6 {[%clk 0:00:25]} 42. Kb4 {[%clk 0:00:19]}  Rh2 {[%clk 0:00:21]} 43. c4 {[%clk 0:00:19]}  Rb2+ {[%clk 0:00:20]} 44. Kc3 {[%clk 0:00:20]}  Ra2 {[%clk 0:00:15]} 45. Rd1 {[%clk 0:00:20]}  Ra3+ {[%clk 0:00:04]} 46. Kb4 {[%clk 0:00:20]}  Rd3 {[%clk 0:00:04]} 47. c5+ {[%clk 0:00:20]}  Kc7 {[%clk 0:00:01]} 48. Rxd3 {[%clk 0:00:18]}  Bxd3 {[%clk 0:00:00]} 49. Ne6+ {[%clk 0:00:19]} 1-0


[Site "https://www.chess.com"]

[Event "Titled Tuesday Blitz July 11 Late 2023"]
[White "Bruedigam, Martin"]
[Black "Kopacz, Grzegorz"]
[WhiteFideId "24608033"]
[BlackFideId "1109880"]
[WhiteElo "2552"]
[BlackElo "2223"]
[Result "1-0"]
[Round "1"]
[TimeControl "180+2"]
[Date "2023.07.11"]
[WhiteClock "0:01:05"]
[BlackClock "0:00:00"]
[Board "160"]

1. c4 {[%clk 0:02:52]}  e5 {[%clk 0:02:53]} 2. Nc3 {[%clk 0:02:51]}  Nf6 {[%clk 0:02:53]} 3. a3 {[%clk 0:02:49]}  d5 {[%clk 0:02:48]} 4. cxd5 {[%clk 0:02:50]}  Nxd5 {[%clk 0:02:49]} 5. e4 {[%clk 0:02:50]}  Nb6 {[%clk 0:02:47]} 6. Nf3 {[%clk 0:02:49]}  Nc6 {[%clk 0:02:40]} 7. Bb5 {[%clk 0:02:49]}  Bd6 {[%clk 0:02:38]} 8. h3 {[%clk 0:02:30]}  O-O {[%clk 0:02:35]} 9. O-O {[%clk 0:02:29]}  Nd4 {[%clk 0:02:27]} 10. d3 {[%clk 0:02:22]}  c6 {[%clk 0:02:24]} 11. Ba4 {[%clk 0:02:20]}  Nxa4 {[%clk 0:02:05]} 12. Nxa4 {[%clk 0:02:15]}  f5 {[%clk 0:02:05]} 13. Nc3 {[%clk 0:02:10]}  f4 {[%clk 0:02:04]} 14. b4 {[%clk 0:02:02]}  g5 {[%clk 0:01:48]} 15. Nh2 {[%clk 0:02:00]}  Qf6 {[%clk 0:01:19]} 16. f3 {[%clk 0:01:56]}  h5 {[%clk 0:01:19]} 17. Ne2 {[%clk 0:01:50]}  c5 {[%clk 0:01:02]} 18. Bb2 {[%clk 0:01:45]}  Nxe2+ {[%clk 0:00:54]} 19. Qxe2 {[%clk 0:01:45]}  cxb4 {[%clk 0:00:55]} 20. axb4 {[%clk 0:01:35]}  Bxb4 {[%clk 0:00:55]} 21. d4 {[%clk 0:01:36]}  exd4 {[%clk 0:00:51]} 22. Qc4+ {[%clk 0:01:35]}  Be6 {[%clk 0:00:48]} 23. Qxb4 {[%clk 0:01:35]}  Rfd8 {[%clk 0:00:42]} 24. Rfd1 {[%clk 0:01:34]}  g4 {[%clk 0:00:33]} 25. Bxd4 {[%clk 0:01:25]}  Qh4 {[%clk 0:00:24]} 26. Qxb7 {[%clk 0:01:19]}  Bf7 {[%clk 0:00:16]} 27. hxg4 {[%clk 0:01:10]}  hxg4 {[%clk 0:00:13]} 28. Nxg4 {[%clk 0:01:10]}  Rab8 {[%clk 0:00:13]} 29. Qc7 {[%clk 0:01:05]}  Rbc8 {[%clk 0:00:00]} 30. Qe5 {[%clk 0:01:05]} 1-0


[Site "https://www.chess.com"]

[Event "Titled Tuesday Blitz July 11 Late 2023"]
[White "Thiel, Thomas"]
[Black "Przybylski, Wojciech"]
[WhiteFideId "4615964"]
[BlackFideId "1117599"]
[WhiteElo "2222"]
[BlackElo "2549"]
[Result "0-1"]
[Round "1"]
[TimeControl "180+2"]
[Date "2023.07.11"]
[WhiteClock "0:00:00"]
[BlackClock "0:01:27"]
[Board "161"]

1. e4 {[%clk 0:02:58]}  c5 {[%clk 0:02:58]} 2. Nc3 {[%clk 0:02:56]}  e5 {[%clk 0:02:57]} 3. Bc4 {[%clk 0:02:54]}  Nf6 {[%clk 0:02:56]} 4. d3 {[%clk 0:02:53]}  h6 {[%clk 0:02:55]} 5. f4 {[%clk 0:02:51]}  d6 {[%clk 0:02:54]} 6. Nf3 {[%clk 0:02:48]}  Bg4 {[%clk 0:02:53]} 7. O-O {[%clk 0:02:43]}  Nc6 {[%clk 0:02:52]} 8. Qe1 {[%clk 0:02:39]}  Bxf3 {[%clk 0:02:48]} 9. Rxf3 {[%clk 0:02:36]}  Nd4 {[%clk 0:02:48]} 10. Rf2 {[%clk 0:02:36]}  a6 {[%clk 0:02:45]} 11. a4 {[%clk 0:02:33]}  Ng4 {[%clk 0:02:39]} 12. Rd2 {[%clk 0:02:18]}  exf4 {[%clk 0:02:38]} 13. Nd5 {[%clk 0:02:15]}  Ne5 {[%clk 0:02:25]} 14. Qf2 {[%clk 0:01:56]}  g5 {[%clk 0:02:18]} 15. Ba2 {[%clk 0:01:45]}  Bg7 {[%clk 0:02:13]} 16. c3 {[%clk 0:01:36]}  Ne6 {[%clk 0:02:09]} 17. d4 {[%clk 0:01:34]}  cxd4 {[%clk 0:02:07]} 18. cxd4 {[%clk 0:01:30]}  Ng4 {[%clk 0:02:06]} 19. Qe2 {[%clk 0:01:24]}  h5 {[%clk 0:01:57]} 20. h3 {[%clk 0:01:17]}  Nxd4 {[%clk 0:01:53]} 21. Qd3 {[%clk 0:01:06]}  Ne5 {[%clk 0:01:47]} 22. Qf1 {[%clk 0:01:01]}  Ne6 {[%clk 0:01:41]} 23. Nc3 {[%clk 0:00:46]}  g4 {[%clk 0:01:35]} 24. Bxe6 {[%clk 0:00:31]}  fxe6 {[%clk 0:01:33]} 25. Qxf4 {[%clk 0:00:23]}  Bh6 {[%clk 0:01:32]} 26. Qg3 {[%clk 0:00:14]}  h4 {[%clk 0:01:30]} 27. Qe1 {[%clk 0:00:00]}  Qb6+ {[%clk 0:01:27]} 0-1


[Site "https://www.chess.com"]

[Event "Titled Tuesday Blitz July 11 Late 2023"]
[White "Thorfinnsson, Bragi"]
[Black "Osmonbekov, Talaibek"]
[WhiteFideId "2300958"]
[BlackFideId "2017253"]
[WhiteElo "2543"]
[BlackElo "2213"]
[Result "1-0"]
[Round "1"]
[TimeControl "180+2"]
[Date "2023.07.11"]
[WhiteClock "0:00:11"]
[BlackClock "0:00:00"]
[Board "166"]

1. e4 {[%clk 0:02:59]}  c5 {[%clk 0:02:59]} 2. Nf3 {[%clk 0:02:59]}  d6 {[%clk 0:03:00]} 3. Nc3 {[%clk 0:02:58]}  Nf6 {[%clk 0:02:57]} 4. g3 {[%clk 0:02:58]}  e6 {[%clk 0:02:50]} 5. Bg2 {[%clk 0:02:58]}  Be7 {[%clk 0:02:51]} 6. O-O {[%clk 0:02:57]}  O-O {[%clk 0:02:51]} 7. d4 {[%clk 0:02:57]}  cxd4 {[%clk 0:02:48]} 8. Nxd4 {[%clk 0:02:58]}  Bd7 {[%clk 0:02:47]} 9. h3 {[%clk 0:02:55]}  Nc6 {[%clk 0:02:46]} 10. Ndb5 {[%clk 0:02:52]}  Qb8 {[%clk 0:02:37]} 11. Bf4 {[%clk 0:02:51]}  e5 {[%clk 0:02:35]} 12. Bg5 {[%clk 0:02:51]}  a6 {[%clk 0:02:34]} 13. Na3 {[%clk 0:02:18]}  b5 {[%clk 0:02:21]} 14. Bxf6 {[%clk 0:02:18]}  Bxf6 {[%clk 0:02:21]} 15. Nd5 {[%clk 0:02:19]}  Bd8 {[%clk 0:02:21]} 16. c3 {[%clk 0:01:57]}  b4 {[%clk 0:02:07]} 17. Nc2 {[%clk 0:01:38]}  bxc3 {[%clk 0:01:59]} 18. bxc3 {[%clk 0:01:39]}  Be6 {[%clk 0:01:58]} 19. Nce3 {[%clk 0:01:36]}  Ra7 {[%clk 0:01:48]} 20. Qd3 {[%clk 0:01:12]}  a5 {[%clk 0:01:33]} 21. f4 {[%clk 0:01:08]}  exf4 {[%clk 0:01:27]} 22. gxf4 {[%clk 0:01:08]}  Bb6 {[%clk 0:01:25]} 23. Kh2 {[%clk 0:01:05]}  Bxe3 {[%clk 0:01:23]} 24. Nxe3 {[%clk 0:01:04]}  Rb7 {[%clk 0:01:20]} 25. e5 {[%clk 0:01:02]}  dxe5 {[%clk 0:00:56]} 26. Bxc6 {[%clk 0:00:57]}  exf4 {[%clk 0:00:56]} 27. Ng4 {[%clk 0:00:45]}  Rb2+ {[%clk 0:00:40]} 28. Nf2 {[%clk 0:00:28]}  f3+ {[%clk 0:00:24]} 29. Kh1 {[%clk 0:00:28]}  Bxh3 {[%clk 0:00:20]} 30. Qxf3 {[%clk 0:00:28]}  Bxf1 {[%clk 0:00:19]} 31. Rxf1 {[%clk 0:00:29]}  Rxa2 {[%clk 0:00:18]} 32. Bd5 {[%clk 0:00:29]}  Rb2 {[%clk 0:00:15]} 33. Ng4 {[%clk 0:00:29]}  Rb1 {[%clk 0:00:14]} 34. Rxb1 {[%clk 0:00:17]}  Qxb1+ {[%clk 0:00:15]} 35. Kg2 {[%clk 0:00:17]}  a4 {[%clk 0:00:13]} 36. Ne5 {[%clk 0:00:14]}  Qc2+ {[%clk 0:00:12]} 37. Kh3 {[%clk 0:00:12]}  a3 {[%clk 0:00:04]} 38. Nxf7 {[%clk 0:00:12]}  g6 {[%clk 0:00:02]} 39. Ng5+ {[%clk 0:00:11]}  Kg7 {[%clk 0:00:00]} 40. Ne6+ {[%clk 0:00:11]} 1-0


[Site "https://www.chess.com"]

[Event "Titled Tuesday Blitz July 11 Late 2023"]
[White "Ankerst, Mihael"]
[Black "Leenhouts, Koen"]
[WhiteFideId "14602369"]
[BlackFideId "1008439"]
[WhiteElo "2204"]
[BlackElo "2542"]
[Result "1-0"]
[Round "1"]
[TimeControl "180+2"]
[Date "2023.07.11"]
[WhiteClock "0:02:39"]
[BlackClock "0:01:42"]
[Board "169"]

1. e4 {[%clk 0:02:52]}  e5 {[%clk 0:02:58]} 2. Nf3 {[%clk 0:02:51]}  Nc6 {[%clk 0:02:58]} 3. Nc3 {[%clk 0:02:50]}  Nf6 {[%clk 0:02:58]} 4. d4 {[%clk 0:02:50]}  exd4 {[%clk 0:02:58]} 5. Nxd4 {[%clk 0:02:49]}  Bb4 {[%clk 0:02:58]} 6. Nxc6 {[%clk 0:02:49]}  bxc6 {[%clk 0:02:58]} 7. Bd3 {[%clk 0:02:49]}  O-O {[%clk 0:02:57]} 8. O-O {[%clk 0:02:48]}  d6 {[%clk 0:02:56]} 9. Bg5 {[%clk 0:02:47]}  h6 {[%clk 0:02:55]} 10. Bh4 {[%clk 0:02:47]}  Re8 {[%clk 0:02:49]} 11. f4 {[%clk 0:02:47]}  Rb8 {[%clk 0:02:41]} 12. Kh1 {[%clk 0:02:47]}  Bc5 {[%clk 0:02:37]} 13. e5 {[%clk 0:02:47]}  dxe5 {[%clk 0:02:32]} 14. fxe5 {[%clk 0:02:48]}  Rxe5 {[%clk 0:02:32]} 15. Bh7+ {[%clk 0:02:47]}  Kxh7 {[%clk 0:02:25]} 16. Qxd8 {[%clk 0:02:46]}  Be7 {[%clk 0:02:10]} 17. Qxc7 {[%clk 0:02:41]}  Ra8 {[%clk 0:01:42]} 18. Qxe5 {[%clk 0:02:39]} 1-0


[Site "https://www.chess.com"]

[Event "Titled Tuesday Blitz July 11 Late 2023"]
[White "Francisco Guecamburu, Candela Be"]
[Black "Rowe, Duane"]
[WhiteFideId "160911"]
[BlackFideId "7400268"]
[WhiteElo "2542"]
[BlackElo "2199"]
[Result "0-1"]
[Round "1"]
[TimeControl "180+2"]
[Date "2023.07.11"]
[WhiteClock "0:00:07"]
[BlackClock "0:00:26"]
[Board "170"]

1. e4 {[%clk 0:02:59]}  d5 {[%clk 0:02:58]} 2. exd5 {[%clk 0:02:59]}  Qxd5 {[%clk 0:02:58]} 3. Nc3 {[%clk 0:02:59]}  Qe6+ {[%clk 0:02:56]} 4. Be2 {[%clk 0:02:55]}  Qg6 {[%clk 0:02:54]} 5. Bf3 {[%clk 0:02:52]}  e5 {[%clk 0:02:52]} 6. Nge2 {[%clk 0:02:45]}  Nf6 {[%clk 0:02:51]} 7. Ng3 {[%clk 0:02:41]}  Nc6 {[%clk 0:02:47]} 8. O-O {[%clk 0:02:36]}  Nd4 {[%clk 0:02:43]} 9. d3 {[%clk 0:02:24]}  h5 {[%clk 0:02:35]} 10. Nd5 {[%clk 0:02:09]}  Nxd5 {[%clk 0:02:24]} 11. Bxd5 {[%clk 0:02:10]}  c6 {[%clk 0:02:23]} 12. Be4 {[%clk 0:01:55]}  f5 {[%clk 0:02:18]} 13. c3 {[%clk 0:01:42]}  h4 {[%clk 0:02:10]} 14. cxd4 {[%clk 0:01:21]}  hxg3 {[%clk 0:02:04]} 15. Bf3 {[%clk 0:01:12]}  Rxh2 {[%clk 0:01:54]} 16. fxg3 {[%clk 0:01:12]}  Rh8 {[%clk 0:01:53]} 17. Qe1 {[%clk 0:01:09]}  Rg8 {[%clk 0:01:51]} 18. Qxe5+ {[%clk 0:01:08]}  Kd7 {[%clk 0:01:51]} 19. Bf4 {[%clk 0:01:06]}  Bd6 {[%clk 0:01:50]} 20. Qe3 {[%clk 0:00:50]}  Re8 {[%clk 0:01:46]} 21. Qd2 {[%clk 0:00:48]}  Qf6 {[%clk 0:01:45]} 22. Qc3 {[%clk 0:00:38]}  Bxf4 {[%clk 0:01:24]} 23. gxf4 {[%clk 0:00:39]}  Rh8 {[%clk 0:01:24]} 24. d5 {[%clk 0:00:35]}  Qxc3 {[%clk 0:01:13]} 25. bxc3 {[%clk 0:00:36]}  Kd6 {[%clk 0:01:13]} 26. c4 {[%clk 0:00:23]}  Bd7 {[%clk 0:01:03]} 27. Rfe1 {[%clk 0:00:23]}  Rae8 {[%clk 0:00:55]} 28. d4 {[%clk 0:00:20]}  c5 {[%clk 0:00:53]} 29. Red1 {[%clk 0:00:11]}  Rc8 {[%clk 0:00:45]} 30. Rac1 {[%clk 0:00:08]}  cxd4 {[%clk 0:00:42]} 31. Rxd4 {[%clk 0:00:09]}  b5 {[%clk 0:00:42]} 32. Be2 {[%clk 0:00:07]}  bxc4 {[%clk 0:00:41]} 33. Rdxc4 {[%clk 0:00:07]}  Rhe8 {[%clk 0:00:40]} 34. Bf1 {[%clk 0:00:06]}  Rh8 {[%clk 0:00:37]} 35. Rxc8 {[%clk 0:00:06]}  Rxc8 {[%clk 0:00:36]} 36. Rxc8 {[%clk 0:00:07]}  Bxc8 {[%clk 0:00:36]} 37. Bc4 {[%clk 0:00:07]}  Bb7 {[%clk 0:00:36]} 38. Kf2 {[%clk 0:00:07]}  Bxd5 {[%clk 0:00:36]} 39. Bxd5 {[%clk 0:00:08]}  Kxd5 {[%clk 0:00:36]} 40. Ke3 {[%clk 0:00:08]}  Kc4 {[%clk 0:00:36]} 41. g3 {[%clk 0:00:08]}  Kc3 {[%clk 0:00:36]} 42. Kf3 {[%clk 0:00:08]}  a5 {[%clk 0:00:36]} 43. g4 {[%clk 0:00:08]}  Kb2 {[%clk 0:00:35]} 44. gxf5 {[%clk 0:00:07]}  a4 {[%clk 0:00:34]} 45. Kg4 {[%clk 0:00:08]}  Kxa2 {[%clk 0:00:34]} 46. Kg5 {[%clk 0:00:09]}  Kb3 {[%clk 0:00:34]} 47. Kg6 {[%clk 0:00:10]}  a3 {[%clk 0:00:34]} 48. Kxg7 {[%clk 0:00:11]}  a2 {[%clk 0:00:34]} 49. f6 {[%clk 0:00:12]}  a1=Q {[%clk 0:00:34]} 50. f5 {[%clk 0:00:11]}  Qd4 {[%clk 0:00:33]} 51. Kg6 {[%clk 0:00:12]}  Qg4+ {[%clk 0:00:31]} 52. Kh6 {[%clk 0:00:09]}  Qxf5 {[%clk 0:00:30]} 53. Kg7 {[%clk 0:00:09]}  Qg5+ {[%clk 0:00:29]} 54. Kf7 {[%clk 0:00:10]}  Kc4 {[%clk 0:00:28]} 55. Ke6 {[%clk 0:00:08]}  Qd5+ {[%clk 0:00:28]} 56. Ke7 {[%clk 0:00:09]}  Qe5+ {[%clk 0:00:26]} 57. Kf7 {[%clk 0:00:09]}  Kd5 {[%clk 0:00:26]} 58. Kg6 {[%clk 0:00:07]}  Ke6 {[%clk 0:00:26]} 0-1


[Site "https://www.chess.com"]

[Event "Titled Tuesday Blitz July 11 Late 2023"]
[White "Vujacic, Igor"]
[Black "Aggelis, Nikolaos"]
[WhiteFideId "932620"]
[BlackFideId "4213220"]
[WhiteElo "2171"]
[BlackElo "2537"]
[Result "0-1"]
[Round "1"]
[TimeControl "180+2"]
[Date "2023.07.11"]
[WhiteClock "0:00:00"]
[BlackClock "0:01:03"]
[Board "171"]

1. Nf3 {[%clk 0:02:59]}  f5 {[%clk 0:02:59]} 2. b3 {[%clk 0:02:55]}  Nf6 {[%clk 0:02:53]} 3. Bb2 {[%clk 0:02:55]}  g6 {[%clk 0:02:54]} 4. c4 {[%clk 0:02:54]}  Bg7 {[%clk 0:02:53]} 5. Nc3 {[%clk 0:02:54]}  O-O {[%clk 0:02:54]} 6. Qc2 {[%clk 0:02:53]}  d6 {[%clk 0:02:54]} 7. g3 {[%clk 0:02:51]}  e5 {[%clk 0:02:54]} 8. d3 {[%clk 0:02:50]}  b6 {[%clk 0:02:39]} 9. Bg2 {[%clk 0:02:49]}  Bb7 {[%clk 0:02:40]} 10. O-O-O {[%clk 0:02:48]}  a5 {[%clk 0:02:39]} 11. Kb1 {[%clk 0:02:20]}  Na6 {[%clk 0:02:37]} 12. a3 {[%clk 0:01:45]}  Nc5 {[%clk 0:02:36]} 13. Ka2 {[%clk 0:01:42]}  Bc6 {[%clk 0:02:23]} 14. Rhg1 {[%clk 0:01:37]}  a4 {[%clk 0:02:19]} 15. b4 {[%clk 0:01:36]}  Nb3 {[%clk 0:02:20]} 16. d4 {[%clk 0:01:29]}  Bxf3 {[%clk 0:02:16]} 17. Bxf3 {[%clk 0:01:24]}  Nxd4 {[%clk 0:02:16]} 18. Qd3 {[%clk 0:00:55]}  Nxf3 {[%clk 0:01:55]} 19. exf3 {[%clk 0:00:51]}  Qd7 {[%clk 0:01:52]} 20. Nd5 {[%clk 0:00:47]}  Qf7 {[%clk 0:01:46]} 21. h4 {[%clk 0:00:44]}  Nxd5 {[%clk 0:01:42]} 22. cxd5 {[%clk 0:00:44]}  e4 {[%clk 0:01:43]} 23. fxe4 {[%clk 0:00:41]}  fxe4 {[%clk 0:01:44]} 24. Qxe4 {[%clk 0:00:36]}  Qxf2 {[%clk 0:01:43]} 25. Rg2 {[%clk 0:00:33]}  Qf3 {[%clk 0:01:39]} 26. Qxf3 {[%clk 0:00:26]}  Rxf3 {[%clk 0:01:40]} 27. Bxg7 {[%clk 0:00:27]}  Kxg7 {[%clk 0:01:40]} 28. Rc1 {[%clk 0:00:28]}  Rc8 {[%clk 0:01:34]} 29. Rgc2 {[%clk 0:00:25]}  Kf6 {[%clk 0:01:24]} 30. Rxc7 {[%clk 0:00:24]}  Rxc7 {[%clk 0:01:23]} 31. Rxc7 {[%clk 0:00:25]}  h5 {[%clk 0:01:21]} 32. Rc6 {[%clk 0:00:21]}  Ke5 {[%clk 0:01:21]} 33. Rxb6 {[%clk 0:00:20]}  Rxg3 {[%clk 0:01:19]} 34. Rb8 {[%clk 0:00:20]}  Kxd5 {[%clk 0:01:19]} 35. Rc8 {[%clk 0:00:14]}  Rg2+ {[%clk 0:01:16]} 36. Kb1 {[%clk 0:00:14]}  Ke6 {[%clk 0:01:16]} 37. b5 {[%clk 0:00:13]}  Kd7 {[%clk 0:01:17]} 38. Rc4 {[%clk 0:00:13]}  Rg4 {[%clk 0:01:15]} 39. Rc3 {[%clk 0:00:04]}  d5 {[%clk 0:01:10]} 40. b6 {[%clk 0:00:04]}  Rc4 {[%clk 0:01:09]} 41. Rg3 {[%clk 0:00:03]}  Rc6 {[%clk 0:01:07]} 42. b7 {[%clk 0:00:03]}  Kc7 {[%clk 0:01:06]} 43. Rg5 {[%clk 0:00:03]}  Rd6 {[%clk 0:01:03]} 44. Kc2 {[%clk 0:00:02]}  d4 {[%clk 0:01:02]} 45. Kd3 {[%clk 0:00:00]}  Kxb7 {[%clk 0:01:03]} 0-1


[Site "https://www.chess.com"]

[Event "Titled Tuesday Blitz July 11 Late 2023"]
[White "Oliveira, Tiago Batista"]
[Black "Graif, William"]
[WhiteFideId "2108291"]
[BlackFideId "2609835"]
[WhiteElo "2155"]
[BlackElo "2536"]
[Result "0-1"]
[Round "1"]
[TimeControl "180+2"]
[Date "2023.07.11"]
[WhiteClock "0:00:00"]
[BlackClock "0:00:11"]
[Board "173"]

1. d4 {[%clk 0:02:57]}  Nf6 {[%clk 0:02:58]} 2. c4 {[%clk 0:02:55]}  e5 {[%clk 0:02:58]} 3. dxe5 {[%clk 0:02:54]}  Ng4 {[%clk 0:02:58]} 4. e6 {[%clk 0:02:54]}  dxe6 {[%clk 0:02:42]} 5. Qxd8+ {[%clk 0:02:53]}  Kxd8 {[%clk 0:02:43]} 6. g3 {[%clk 0:02:46]}  Bc5 {[%clk 0:02:39]} 7. e3 {[%clk 0:02:45]}  Bd7 {[%clk 0:02:20]} 8. Bg2 {[%clk 0:02:45]}  Bc6 {[%clk 0:02:20]} 9. Nf3 {[%clk 0:02:43]}  Ke7 {[%clk 0:02:06]} 10. O-O {[%clk 0:02:41]}  Nd7 {[%clk 0:02:01]} 11. Nc3 {[%clk 0:02:37]}  Rhd8 {[%clk 0:01:54]} 12. a3 {[%clk 0:02:17]}  a5 {[%clk 0:01:46]} 13. b3 {[%clk 0:02:15]}  Nde5 {[%clk 0:01:39]} 14. Nxe5 {[%clk 0:02:12]}  Nxe5 {[%clk 0:01:31]} 15. Bxc6 {[%clk 0:02:06]}  bxc6 {[%clk 0:01:16]} 16. Ne4 {[%clk 0:02:04]}  Ba7 {[%clk 0:01:14]} 17. Bb2 {[%clk 0:02:03]}  Nf3+ {[%clk 0:00:59]} 18. Kg2 {[%clk 0:02:01]}  Nd2 {[%clk 0:01:00]} 19. Nxd2 {[%clk 0:01:59]}  Rxd2 {[%clk 0:00:59]} 20. Bxg7 {[%clk 0:01:47]}  Bxe3 {[%clk 0:00:53]} 21. Rae1 {[%clk 0:01:15]}  Bc5 {[%clk 0:00:49]} 22. Be5 {[%clk 0:01:09]}  Rb8 {[%clk 0:00:41]} 23. Bc3 {[%clk 0:00:33]}  Rc2 {[%clk 0:00:30]} 24. Bxa5 {[%clk 0:00:33]}  Rxb3 {[%clk 0:00:30]} 25. Bxc7 {[%clk 0:00:33]}  Rxc4 {[%clk 0:00:26]} 26. Rc1 {[%clk 0:00:29]}  Rbc3 {[%clk 0:00:19]} 27. Rxc3 {[%clk 0:00:28]}  Rxc3 {[%clk 0:00:20]} 28. a4 {[%clk 0:00:28]}  Rc2 {[%clk 0:00:19]} 29. a5 {[%clk 0:00:28]}  Ra2 {[%clk 0:00:19]} 30. h4 {[%clk 0:00:24]}  Kd7 {[%clk 0:00:19]} 31. Bb6 {[%clk 0:00:22]}  Bxb6 {[%clk 0:00:20]} 32. axb6 {[%clk 0:00:22]}  Rb2 {[%clk 0:00:20]} 33. Rd1+ {[%clk 0:00:22]}  Ke7 {[%clk 0:00:20]} 34. Kf3 {[%clk 0:00:13]}  Rxb6 {[%clk 0:00:20]} 35. Ke4 {[%clk 0:00:13]}  c5 {[%clk 0:00:20]} 36. f4 {[%clk 0:00:13]}  Rd6 {[%clk 0:00:18]} 37. Rc1 {[%clk 0:00:13]}  Rd5 {[%clk 0:00:19]} 38. Rb1 {[%clk 0:00:13]}  Kd6 {[%clk 0:00:16]} 39. Rb7 {[%clk 0:00:13]}  f5+ {[%clk 0:00:14]} 40. Ke3 {[%clk 0:00:13]}  c4 {[%clk 0:00:14]} 41. Rxh7 {[%clk 0:00:12]}  Rd3+ {[%clk 0:00:14]} 42. Kf2 {[%clk 0:00:10]}  Kd5 {[%clk 0:00:12]} 43. h5 {[%clk 0:00:11]}  Rd2+ {[%clk 0:00:11]} 44. Ke1 {[%clk 0:00:09]}  Rh2 {[%clk 0:00:11]} 45. h6 {[%clk 0:00:09]}  Ke4 {[%clk 0:00:10]} 46. Rc7 {[%clk 0:00:07]}  Kd3 {[%clk 0:00:09]} 47. h7 {[%clk 0:00:07]}  Rh1+ {[%clk 0:00:08]} 48. Kf2 {[%clk 0:00:07]}  c3 {[%clk 0:00:09]} 49. Rd7+ {[%clk 0:00:02]}  Kc2 {[%clk 0:00:08]} 50. Rc7 {[%clk 0:00:02]}  Kb2 {[%clk 0:00:07]} 51. Rb7+ {[%clk 0:00:02]}  Kc1 {[%clk 0:00:07]} 52. Rc7 {[%clk 0:00:02]}  c2 {[%clk 0:00:08]} 53. Kf3 {[%clk 0:00:02]}  Rh2 {[%clk 0:00:07]} 54. g4 {[%clk 0:00:02]}  fxg4+ {[%clk 0:00:07]} 55. Kxg4 {[%clk 0:00:02]}  Kd1 {[%clk 0:00:06]} 56. Rd7+ {[%clk 0:00:02]}  Ke1 {[%clk 0:00:06]} 57. Rc7 {[%clk 0:00:02]}  Kd1 {[%clk 0:00:06]} 58. Rd7+ {[%clk 0:00:02]}  Kc1 {[%clk 0:00:06]} 59. Rc7 {[%clk 0:00:03]}  Rh1 {[%clk 0:00:07]} 60. Kg5 {[%clk 0:00:03]}  Kb2 {[%clk 0:00:07]} 61. Kg6 {[%clk 0:00:03]}  c1=Q {[%clk 0:00:06]} 62. Rxc1 {[%clk 0:00:04]}  Kxc1 {[%clk 0:00:07]} 63. Kg7 {[%clk 0:00:05]}  Kd2 {[%clk 0:00:08]} 64. h8=Q {[%clk 0:00:04]}  Rxh8 {[%clk 0:00:09]} 65. Kxh8 {[%clk 0:00:04]}  Ke3 {[%clk 0:00:09]} 66. Kg7 {[%clk 0:00:04]}  Kxf4 {[%clk 0:00:10]} 67. Kf6 {[%clk 0:00:00]}  e5 {[%clk 0:00:11]} 0-1


[Site "https://www.chess.com"]